Cogmind - Beta 14 @@@ ROGUE MODE // 2025.04.23 @ 00:09:37 Player: SovietPaperclip Result: Self-destructed Performance ------------- Evolutions (4) 2000 Regions Visited (6) 1200 Robots Destroyed (22) 110 Value Destroyed (719) 719 Prototype IDs (25) 500 Alien Tech Used (0) 0 Bonus (342) 342 TOTAL SCORE: 4871 Bonus ------- Follower Combat Kills 60 Registered with UFD 300 Friendly Fire -18 Cogmind --------- Core Integrity 811/850 Matter 20/300 Energy 175/175 System Corruption 0% Temperature Warning (307) Movement Treading (230) Ox1 Location -6/Factory Parts ------- > --- POWER (2) -------- Light Ion Engine Light Angular Momentum Engine > --- PROPULSION (6) --- Light Treads Spiked Treads Armored Treads Armored Treads Advanced Treads Overtuned Treads > --- UTILITY (5) ------ Scrap Suit Humpback Makeshift Light Armor Plating > --- WEAPON (2) ------- Hypervelocity Gauss Rifle Battle Cannon > --- INVENTORY (35) --- Fission Core Spiked Treads Compact Wheel Armored Wheel Nuclear Pulse Thruster Scrap Suit High-capacity Storage Unit Experimental Sensor Array Improved Terrain Scanner Makeshift System Shield Authchip [Propulsion] Authchip [Propulsion] Authchip [Propulsion] Authchip [Device] Authchip [Armor] Authchip [Armor] A0-MCA's Component Scanner Power Bank Battle Cannon Bore Cannon Grenade Launcher Improved Grenade Launcher CPS Tube (2) CPS Tube (2) Peak State ------------ > --- POWER ------------ Light Ion Engine Light Angular Momentum Engine > --- PROPULSION ------- Light Treads Spiked Treads Armored Treads Armored Treads Advanced Treads Overtuned Treads > --- UTILITY ---------- Scrap Suit Humpback Makeshift Light Armor Plating > --- WEAPON ----------- Hypervelocity Gauss Rifle Bore Cannon > --- INVENTORY -------- Fission Core Spiked Treads Compact Wheel Armored Wheel Nuclear Pulse Thruster Scrap Suit High-capacity Storage Unit Experimental Sensor Array Improved Terrain Scanner Makeshift System Shield Authchip [Propulsion] Authchip [Propulsion] Authchip [Propulsion] Authchip [Device] Authchip [Armor] Authchip [Armor] A0-MCA's Component Scanner Power Bank Battle Cannon Battle Cannon Grenade Launcher Improved Grenade Launcher CPS Tube CPS Tube [Rating: 54] Favorites ----------- Power Light Ion Engine Engine Light Ion Engine Propulsion Light Treads Treads Light Treads Wheel Armored Wheel Utility Humpback Device Seismic Detector Storage Humpback Processor Armor Integrity Analyzer Protection Makeshift Light Armor Plating Weapon Battle Cannon Energy Gun Makeshift Laser Ballistic Gun Light Assault Rifle Ballistic Cannon Battle Cannon Launcher Grenade Launcher Build | -11 -10 -10 -10 -8 -8 -6 ------- Run | Yrd Mat Min Sub Rec Scr Fac Slots Evolved 8 | . . . . . . 8 Power 1 | . . . . . . 1 Propulsion 4 | . . . . . . 4 Utility 3 | . . . . . . 3 Weapon . | . . . . . . . Parts Attached 40 | 7 1 . 19 2 . 11 Power 2 | 1 . . . . . 1 Engine 2 | 1 . . . . . 1 Core . | . . . . . . . Reactor . | . . . . . . . Propulsion 14 | 2 . . 4 2 . 6 Treads 11 | 2 . . 3 . . 6 Leg . | . . . . . . . Wheel 3 | . . . 1 2 . . Hover . | . . . . . . . Flight . | . . . . . . . Utility 10 | 2 1 . 5 . . 2 Device 2 | 1 . . . . . 1 Storage 3 | 1 1 . 1 . . . Processor 1 | . . . 1 . . . Hackware . | . . . . . . . Protection 4 | . . . 3 . . 1 Artifact . | . . . . . . . Weapon 14 | 2 . . 10 . . 2 Energy Gun 1 | . . . 1 . . . Energy Cannon . | . . . . . . . Ballistic Gun 4 | 2 . . 1 . . 1 Ballistic Cannon 6 | . . . 5 . . 1 Launcher 3 | . . . 3 . . . Special Weapon . | . . . . . . . Impact Weapon . | . . . . . . . Slashing Weapon . | . . . . . . . Piercing Weapon . | . . . . . . . Special Melee Weapon . | . . . . . . . Unidentified Prototypes . | . . . . . . . Parts Lost . | . . . . . . . Power . | . . . . . . . Propulsion . | . . . . . . . Utility . | . . . . . . . Weapon . | . . . . . . . Highest Loss Streak . | . . . . . . . To Critical Strikes . | . . . . . . . Average Slot Usage (%) 90 | . 100 100 95 85 85 82 Engine 13 | . 14 14 14 14 14 12 Treads 16 | . 28 28 26 9 . 37 Wheel 11 | . . . 1 18 28 1 Device 1 | . 14 14 . . . 5 Storage 13 | . 14 14 14 14 14 6 Protection 4 | . . . 9 . . 5 Ballistic Gun 2 | . 28 28 . . . 1 Ballistic Cannon 24 | . . . 26 28 28 11 Peak Build Rating 54 | 7 7 7 36 36 25 54 Average Rating 22 | 5 7 7 21 31 21 49 On Entrance 14 | . 7 7 7 36 20 25 Naked Turns . | . . . . . . . Heaviest Build 235 | 11 26 26 215 215 215 235 Greatest Support 120 | 40 40 40 40 40 28 120 Greatest Overweight (x) 17 | . . . 10 17 7 7 Average Overweight (x) 4 | . . . 1 9 7 1 Largest Inventory Capacity 35 | 8 15 15 35 35 35 35 Average Capacity 27 | 7 14 15 20 35 35 35 Most Carried 35 | 3 4 5 31 35 33 33 Average Carried 21 | 1 3 4 18 29 27 25 Final Capacity 35 | 8 15 15 35 35 35 35 Final Carried 33 | 3 4 5 31 25 33 25 Class Distribution -------------------- 57% | Hauler-Mutant 26% | Derelict-Mutant 15% | Mutant Dominant Class ---------------- Mutant | -10/Materials Mutant | -10/Mines Derelict-Mutant | -10/Subcaves Hauler-Mutant | -8/Recycling Hauler-Mutant | -8/Scraptown Derelict-Mutant | -6/Factory Resources | -11 -10 -10 -10 -8 -8 -6 ----------- Run | Yrd Mat Min Sub Rec Scr Fac Matter Collected 1254 | 219 51 38 762 184 . . Remotely . | . . . . . . . Salvage Created 700 | 26 31 . 279 93 . 271 Parts 53 | 3 3 . 19 7 . 21 Haulers Intercepted . | . . . . . . . Recyclers Shooed . | . . . . . . . Parts Field Recycled . | . . . . . . . Retrieved Matter . | . . . . . . . Parts Self-Destructed 14 | . . . 14 . . . Prevented . | . . . . . . . Kills | -11 -10 -10 -10 -8 -8 -6 ------- Run | Yrd Mat Min Sub Rec Scr Fac Combat Hostiles Destroyed 19 | . 2 . 11 2 . 4 Guns 4 | . 2 . . . . 2 Cannons 15 | . . . 11 2 . 2 Classes Destroyed 6 | 1 1 . 2 1 . 1 Tunneler 1 | 1 . . . . . . Turret 2 | . . . 2 . . . Swarmer 6 | . 2 . 4 . . . Sentry 5 | . . . . 2 . 3 Programmer 1 | . . . . . . 1 Subdweller 7 | . . . 7 . . . Best Kill Streak 4 | 1 2 . 4 1 . 4 Combat Bots Only 4 | . 2 . 2 1 . 4 Max Kills in Single Turn 2 | 1 1 . 2 1 . 1 Gunslinging . | . . . . . . . Exploded . | . . . . . . . Melee . | . . . . . . . Uniques/NPCs Destroyed . | . . . . . . . Combat | -11 -10 -10 -10 -8 -8 -6 -------- Run | Yrd Mat Min Sub Rec Scr Fac Hostile Shots Fired 228 | . 6 1 72 . . 149 Missed 81 | . 3 . 31 . . 47 Damage Taken 1459 | . 26 32 582 . . 819 Core 167 | . 16 16 96 . . 39 Absorbed by Shields . | . . . . . . . Core Remaining (%) 74 | 100 . . . . 48 . Volleys Fired 115 | 7 4 3 80 2 . 19 Largest 2 | 2 2 2 2 2 . 2 Hottest 96 | 40 40 40 96 96 . 90 Shots Fired 186 | 14 8 6 122 4 . 32 Gun 47 | 14 8 6 . . . 19 Cannon 133 | . . . 116 4 . 13 Launcher 6 | . . . 6 . . . Special . | . . . . . . . Kinetic 180 | 14 8 6 116 4 . 32 Thermal . | . . . . . . . Explosive 6 | . . . 6 . . . Electromagnetic . | . . . . . . . Robot Hit Streak 14 | 4 8 14 13 3 . 9 Robot Miss Streak 5 | 3 . . 5 . . 2 Penetration Max 1 | . . . . . . 1 Secondary Targets . | . . . . . . . Shots Hit Robots 85 | 7 7 6 42 2 . 21 Core Hits 39 | 2 4 3 21 2 . 7 Critical Kills 3 | . . . 1 . . 2 Critical Parts Destroyed 8 | . . . 4 . . 4 Critical Strikes 14 | . . . 8 . . 6 Destroy 11 | . . . 5 . . 6 Blast 3 | . . . 3 . . . Melee Attacks . | . . . . . . . Impact . | . . . . . . . Slashing . | . . . . . . . Piercing . | . . . . . . . Sneak Attacks . | . . . . . . . Combat Hostiles . | . . . . . . . Follow-up Attacks . | . . . . . . . Damage Inflicted 1247 | 68 56 44 775 53 . 251 Guns 269 | 68 56 44 . . . 101 Cannons 960 | . . . 757 53 . 150 Explosions 18 | . . . 18 . . . Melee . | . . . . . . . Ramming . | . . . . . . . Kinetic 1229 | 68 56 44 757 53 . 251 Thermal . | . . . . . . . Explosive 18 | . . . 18 . . . Electromagnetic . | . . . . . . . Impact . | . . . . . . . Slashing . | . . . . . . . Piercing . | . . . . . . . Highest Corruption . | . . . . . . . Average Corruption . | . . . . . . . Corruption Purged . | . . . . . . . Corruption Blocked . | . . . . . . . Overload Shots . | . . . . . . . Overflow Damage . | . . . . . . . Projectiles . | . . . . . . . Explosions . | . . . . . . . Melee . | . . . . . . . Knockbacks 10 | . . . 10 . . . Impact . | . . . . . . . Kinetic 10 | . . . 10 . . . Secondary . | . . . . . . . Self-Inflicted Damage 11 | . . . 11 . . . Shots 1 | . . . 1 . . . Rammed . | . . . . . . . Targets Rammed . | . . . . . . . Kicked . | . . . . . . . Crushed . | . . . . . . . Highest Temperature 330 | . . . 9 36 . 330 Average Temperature 195 | . . . 4 22 . 243 Received Heat Transfer 345 | . . 18 84 . . 243 Effects 3 | . . . . . . 3 Interference 3 | . . . . . . 3 Siege Activations . | . . . . . . . Robots Corrupted . | . . . . . . . Combat Hostiles . | . . . . . . . Parts Fried . | . . . . . . . Impact Corruptions . | . . . . . . . Robots Melted . | . . . . . . . Combat Hostiles . | . . . . . . . Parts Melted . | . . . . . . . Heat Transferred . | . . . . . . . Parts Sabotaged . | . . . . . . . Parts Stolen . | . . . . . . . Parts Stripped . | . . . . . . . Power Chain Reactions . | . . . . . . . Alert | -11 -10 -10 -10 -8 -8 -6 ------- Run | Yrd Mat Min Sub Rec Scr Fac Peak Influence 138 | 5 58 55 . 49 . 138 Initial 49 | . 3 22 . 49 . . Average 15 | 1 42 16 . 14 . 6 Maximum Alert Level . | . . . . . . . Low Security (%) 100 | 100 100 100 . 100 . 100 Level 1 . | . . . . . . . Level 2 . | . . . . . . . Level 3 . | . . . . . . . Level 4 . | . . . . . . . Level 5 . | . . . . . . . High Security . | . . . . . . . Max Security . | . . . . . . . Squads Dispatched 4 | . . . . . . 4 Investigation . | . . . . . . . Extermination . | . . . . . . . Reinforcement 1 | . . . . . . 1 Assault . | . . . . . . . Garrison 3 | . . . . . . 3 Intercept . | . . . . . . . Searches Triggered . | . . . . . . . Construction Impeded 1 | . . . . . . 1 Haulers Reinforced . | . . . . . . . Active Scanning Responses . | . . . . . . . Cargo Convoy Interrupts . | . . . . . . . Stealth | -11 -10 -10 -10 -8 -8 -6 --------- Run | Yrd Mat Min Sub Rec Scr Fac Distress Signals . | . . . . . . . Communications Jammed . | . . . . . . . Distress Signals . | . . . . . . . Times Spotted 33 | . 4 2 22 . . 5 Peak Tracking Total 4 | . 3 2 4 . . 2 Tactical Retreats 2 | . . . 2 . . . Traps | -11 -10 -10 -10 -8 -8 -6 ------- Run | Yrd Mat Min Sub Rec Scr Fac Traps Triggered 1 | . . . 1 . . . Indirectly . | . . . . . . . Trap Hack Attempts . | . . . . . . . Triggered . | . . . . . . . Disarmed . | . . . . . . . Reprogrammed . | . . . . . . . Reused . | . . . . . . . Traps Extracted . | . . . . . . . Installed . | . . . . . . . Triggered 2 | . . . 2 . . . Machines | -11 -10 -10 -10 -8 -8 -6 ---------- Run | Yrd Mat Min Sub Rec Scr Fac Machines Disabled 3 | . . . 3 . . . Max in Single Turn 1 | . . . 1 . . . Machines Repaired . | . . . . . . . Machines Dismantled . | . . . . . . . Machines Sabotaged . | . . . . . . . Overloaded Fab Kills . | . . . . . . . Hacking | -11 -10 -10 -10 -8 -8 -6 --------- Run | Yrd Mat Min Sub Rec Scr Fac Machines Accessed 18 | . 1 . 4 6 7 . Terminals 4 | . 1 . . 3 . . Fabricators . | . . . . . . . Repair Stations . | . . . . . . . Recycling Units 1 | . . . . 1 . . Scanalyzers . | . . . . . . . Garrison Access . | . . . . . . . Total Hacks 51 | . 1 . 9 10 31 . Successful 46 | . 1 . 9 5 31 . Failed 5 | . . . . 5 . . Catastrophic 1 | . . . . 1 . . Database Lockouts . | . . . . . . . Manual 1 | . 1 . . . . . Terminals 6 | . 1 . . 5 . . Fabricators . | . . . . . . . Repair Stations . | . . . . . . . Recycling Units 3 | . . . . 3 . . Scanalyzers . | . . . . . . . Garrison Access . | . . . . . . . Terminal Hacks 43 | . . . 9 3 31 . Record 38 | . . . 6 2 30 . Open Door 1 | . . . 1 . . . Zone Layout 1 | . . . . 1 . . Derelict Proto ID Bank 2 | . . . 1 . 1 . Release Object 1 | . . . 1 . . . Fabricator Hacks . | . . . . . . . Repair Station Hacks . | . . . . . . . Recycling Unit Hacks 2 | . . . . 2 . . Process 1 | . . . . 1 . . Report Inventory 1 | . . . . 1 . . Scanalyzer . | . . . . . . . Garrison Access Hacks . | . . . . . . . Unauthorized Hacks 1 | . 1 . . . . . Terminals 1 | . 1 . . . . . Botnet 1 | . 1 . . . . . Fabricators . | . . . . . . . Repair Stations . | . . . . . . . Recycling Units . | . . . . . . . Scanalyzers . | . . . . . . . Garrison Access . | . . . . . . . Data Cores Recovered . | . . . . . . . Used . | . . . . . . . Hacking Detections 4 | . . . . 4 . . Full Trace Events 1 | . . . . 1 . . Feedback Events . | . . . . . . . Feedback Blocked . | . . . . . . . Robot Schematics Acquired . | . . . . . . . Robots Built . | . . . . . . . Authchips . | . . . . . . . Time . | . . . . . . . Total Robot Build Rating . | . . . . . . . Part Schematics Acquired . | . . . . . . . Parts Built . | . . . . . . . Authchips . | . . . . . . . Time . | . . . . . . . Total Part Build Rating . | . . . . . . . Parts Repaired . | . . . . . . . Time . | . . . . . . . Parts Recycled . | . . . . . . . Recycled Matter 18 | . . . . 18 . . Retrieved Matter . | . . . . . . . Retrieved Components . | . . . . . . . Parts Scanalyzed . | . . . . . . . Part Schematics Acquired . | . . . . . . . Parts Damaged . | . . . . . . . Bothacking | -11 -10 -10 -10 -8 -8 -6 ------------ Run | Yrd Mat Min Sub Rec Scr Fac Used RIF Installer . | . . . . . . . Robots Hacked . | . . . . . . . Non-combat . | . . . . . . . Combat . | . . . . . . . Robot Hacks Applied . | . . . . . . . Relay Couplers Released . | . . . . . . . Fabnet Peak Effective % . | . . . . . . . Robots Rewired . | . . . . . . . Allies Hacked . | . . . . . . . Hacks Repelled . | . . . . . . . Allies | -11 -10 -10 -10 -8 -8 -6 -------- Run | Yrd Mat Min Sub Rec Scr Fac Total Allies 3 | . . 3 . . . . Largest Group 3 | . . 3 2 . . . Highest-Rated Group 40 | . . 40 24 . . . Highest-Rated Ally 16 | . . 16 16 . . . Total Orders . | . . . . . . . Ally Attacks 20 | . . 11 9 . . . Total Damage 125 | . . 114 11 . . . Kills 2 | . . 2 . . . . Allies Corrupted . | . . . . . . . Allies Melted . | . . . . . . . Intel | -11 -10 -10 -10 -8 -8 -6 ------- Run | Yrd Mat Min Sub Rec Scr Fac Robot Analysis Total . | . . . . . . . Derelict Logs Recovered 7 | . . 2 1 . 4 . Drone Launches . | . . . . . . . Drone Recoveries . | . . . . . . . Exploration | -11 -10 -10 -10 -8 -8 -6 ------------- Run | Yrd Mat Min Sub Rec Scr Fac Turns Passed 11731 | 122 144 778 5084 1897 3359 347 Spaces Moved 5399 | 60 82 360 2435 676 1671 115 Core 4 | 4 . . . . . . Treads 2834 | 56 82 360 2192 40 . 104 Legs . | . . . . . . . Wheels 2561 | . . . 243 636 1671 11 Hover . | . . . . . . . Flight . | . . . . . . . Fastest Speed 50 | 50 160 160 160 200 200 200 Average Speed 202 | 152 160 160 194 269 200 227 Slowest Speed 660 | 160 160 160 660 660 200 230 Overloaded Moves . | . . . . . . . Propulsion Burnouts . | . . . . . . . Robots Hopped . | . . . . . . . Cave-ins Triggered . | . . . . . . . Exploration Rate (%) 54 | 3 26 78 84 90 94 4 Regions Visited 6 Branch Regions 4 Pre-discovered Areas 3 | . . 1 2 . . . Known Exits Taken . | . . . . . . . Unknown Exits Taken 6 | 1 1 1 1 1 1 . Scrap Searched 24 | . . 2 17 . 5 . Spaces Dug 32 | . . . 32 . . . Terrain Destroyed 65 | . . . 63 . . 2 Melee . | . . . . . . . Projectile 26 | . . . 25 . . 1 AOE 38 | . . . 38 . . . Terrain Rammed . | . . . . . . . Walls Destroyed . | . . . . . . . Machines Disabled . | . . . . . . . Actions | -11 -10 -10 -10 -8 -8 -6 --------- Run | Yrd Mat Min Sub Rec Scr Fac Total 5994 | 76 89 557 2665 749 1692 166 Wait 351 | . 1 194 89 46 . 21 Move 5393 | 59 81 359 2434 675 1670 115 Hop . | . . . . . . . Pick Up 66 | 3 1 1 30 16 15 . Fast Attach 9 | 7 . . 2 . . . Attach 8 | . . . 1 . . 7 Detach . | . . . . . . . Swap 23 | . 1 . 16 2 . 4 Drop 29 | . 1 . 13 8 7 . Fire 115 | 7 4 3 80 2 . 19 Melee . | . . . . . . . Ram . | . . . . . . . Kick . | . . . . . . . Crush . | . . . . . . . Escape Stasis . | . . . . . . . Rewire . | . . . . . . . Trap . | . . . . . . . Miscellaneous . | . . . . . . . Route ------- -11/Scrapyard -10/Materials -10/Mines (discovered 3 exits: [*Mat x2] / *Sub) -10/Subcaves (discovered 2 exits: [*Mat] / *Rec) -8/Recycling (discovered 2 exits: [*Fac] / *Scr) -8/Scraptown (discovered 2 exits: [*Fac x2]) -6/Factory History --------- Turn | Location | Event 8 | -11/Scrapyard | Discovered new exit (range 14) 123 | -11/Scrapyard | Entered Materials 228 | -10/Materials | Discovered new exit (range 8) 267 | -10/Materials | Entered Mines 280 | -10/Mines | Discovered new exit (range 7) 282 | -10/Mines | Learned location of 2 exits from Materials 312 | -10/Mines | Build established: Mutant 649 | -10/Mines | Learned location of Zion (-7) 820 | -10/Mines | Assisted by bots powering up and referring to "LRC-V3" 934 | -10/Mines | Discovered new exit (range 5) 1040 | -10/Mines | Discovered new exit (range 3) 1045 | -10/Mines | Entered Subcaves 1045 | -10/Subcaves | Accompanied by 2 allies 1160 | -10/Subcaves | Disturbed a concealed Subdweller 1385 | -10/Subcaves | Disturbed a concealed Subdweller 1489 | -10/Subcaves | Discovered new exit (range 5) 1813 | -10/Subcaves | Shifting Twisted Machinery released Spk. Treads 1820 | -10/Subcaves | Shifting Twisted Machinery released Spk. Treads 2144 | -10/Subcaves | Build established: Derelict-Mutant 2425 | -10/Subcaves | Shifting Twisted Machinery released Mak. Flight Unit 2433 | -10/Subcaves | Shifting Twisted Machinery released Battle Rifle 2618 | -10/Subcaves | A swath of the cavern ceiling suddenly collapsed 2793 | -10/Subcaves | Learned location of Storage (-8) 3158 | -10/Subcaves | Visited Clippyterm 3162 | -10/Subcaves | Learned location of Extension (-5) 3162 | -10/Subcaves | Learned Factory trap positions 3252 | -10/Subcaves | Visited 4L-MR0's lab 3274 | -10/Subcaves | Found Power Bank 4089 | -10/Subcaves | Discovered new exit (range 11) 4106 | -10/Subcaves | Core integrity fell below 50% 4809 | -10/Subcaves | Found SUBCON Basin 4925 | -10/Subcaves | Build established: Hauler-Mutant 6129 | -10/Subcaves | Entered Recycling 7136 | -8/Recycling | Discovered new exit (range 8) 7372 | -8/Recycling | Scanned before Scraplab entrance 7402 | -8/Recycling | Entered Scraplab 7620 | -8/Recycling | Discovered new exit (range 3) 7652 | -8/Recycling | Found SUBCON Basin 8026 | -8/Recycling | Entered Scraptown 8417 | -8/Scraptown | Visited Fellowship of the Rings 8505 | -8/Scraptown | Visited Symbiants 8531 | -8/Scraptown | Visited Cyclists 8561 | -8/Scraptown | Visited Red Mages 8647 | -8/Scraptown | Visited Cave Peace 8677 | -8/Scraptown | Visited The Evicted 8705 | -8/Scraptown | Visited UFD Registry 8705 | -8/Scraptown | Registered with UFD as "Steamchip" 8809 | -8/Scraptown | Entered Cyclist Reading Room 9204 | -8/Scraptown | Heard Great Nut preacher, LISTEN AND RECITE! 9232 | -8/Scraptown | Scanned Subdweller tech in exchange for log data 9236 | -8/Scraptown | Learned Research emergency access door positions 9238 | -8/Scraptown | Learned Factory terminal intel 9240 | -8/Scraptown | Learned location of 1 exit from Upper Caves 9242 | -8/Scraptown | Learned Factory trap positions 9342 | -8/Scraptown | Discovered new exit (range 13) 9894 | -8/Scraptown | Visited Supply Room 10043 | -8/Scraptown | Visited Curators Association 10153 | -8/Scraptown | Visited Science Guys 10231 | -8/Scraptown | Visited A0-MCA Data Center 10259 | -8/Scraptown | Visited LU-1G1's Boring Crew 10335 | -8/Scraptown | Visited DA-N13 Charitable Foundation 10353 | -8/Scraptown | Found DCF Scrap (31 items) 10409 | -8/Scraptown | Visited Research Penetration Think Tank 10451 | -8/Scraptown | Visited Abandonware Association 10479 | -8/Scraptown | Learned abandonware demo "OVRCLOCK.EXE" 10483 | -8/Scraptown | Learned abandonware demo "MELTYB.EXE" 10483 | -8/Scraptown | Learned abandonware demo "REBOOT5.EXE" 10575 | -8/Scraptown | Delivered Scrap Shield to a Scientist 10809 | -8/Scraptown | Visited Infowarlord's Domain 10823 | -8/Scraptown | Found Exp. Sensor Array 10860 | -8/Scraptown | Visited Supply Room 10992 | -8/Scraptown | Given a C+ rating by A0-MCA 10998 | -8/Scraptown | Found A0-MCA's Component Scanner 11285 | -8/Scraptown | Found Scrap Suit 11288 | -8/Scraptown | Found Scrap Suit 11379 | -8/Scraptown | Discovered new exit (range 3) 11385 | -8/Scraptown | Entered Factory 11385 | -6/Factory | Evolved 8 slots: Power x1, Propulsion x4, Utility x3 11386 | -6/Factory | Loaded intel: 110 trap records 11387 | -6/Factory | Loaded intel: 26 terminal locations 11721 | -6/Factory | Build established: Derelict-Mutant 11732 | -6/Factory | Self-destructed Last Messages --------------- 11718_ HV Slug penetrates Y-54 Guardian. 11718_ Y-54 Guardian suffers critical hit (Destroy). 11718_ Y-54 Guardian destroyed. 11718_ R-10 Processor collects Lgt. Treads. 11721_ R-10 Processor collects Imp. Heat Sink. 11724_ R-10 Processor collects Imp. Deuterium Engine. 11726_ HV Slug penetrates Y-54 Guardian. 11726_ Y-54 Guardian suffers critical hit (Destroy). 11726_ Destroyed Flak Gun. 11726_ HV Slug penetrates Wall. 11729_ HV Slug penetrates Y-54 Guardian. 11729_ Y-54 Guardian suffers critical hit (Destroy). 11729_ Y-54 Guardian destroyed. 11729_ R-10 Processor collects Imp. Heat Sink. 11730_ Overheating: System interference. 11730_ Hyp. Gauss Rifle temporarily disabled. Map ----- +----------------------------------------------------+ | ?????????????????????????????????????????????????? | | ?????????????????????????????????????????????????? | | ?????????????????????????????????????????????????? | | ?????????????????????????????????????????????????? | | ?????????????????????????????????????????????????? | | ??????????????????????????????????????"T"????????? | | ?????????????????????????????????????????????????? | | ?????????????????????????????????????????????????? | | ????????????????????????? ?????????????????????? | | ????????????????????????? +??????????????????? | | ????????????????????????? ##############?????? | | ?????????????????????????R%%# #?????# | | ????????????????????????? =# #???T?+ | | ????????????????????????? # #?????# | | ????????????????????????? # #?????# | | ????????????????????????# # #?????# | | ????????????????????????# # #?????# | | ????????????????????????# # #?????# | | ????????????????????????# # #?????# | | ????????????????????????# R # #?????# | | ???????????## ########### # ! #?????# | | ???????????# # # #???### | | ???????????#"" g *#[ # #???# | | ???????????#"" g%!#[% #######/########## | | ???????????#G """=%;%= | | ???????????#"" """"" *#@% | | ???????????#"" """"" +! | | ???????????# # | | ???????????# [[ # | | ???????????# [[ # #########+########## | | ???????????# ! [[ # # #?????# | | ???????????# # + #?????# | | ???????????# # # #?????# | | ???????????####"######### # #?????# | | ??????????????#??# """ + # ####### | | ?????????????????# """ # # + | | ?????????????????# """ # # #########+# | | ?????????????????# + # # | | ?????????????????# ### # | | ?????????????????# #?# # | | ?????????????????########?# # | | ??????????????????????????# # | | ??????????????????????????############## | | ???????????????????????????????????????# | | ???????????????????????????????????????########### | | | | | | | | | | | +----------------------------------------------------+ Best States ------------- Heat Dissipation 37 Energy Generation 23 Energy Capacity 175 Matter Stores 300 Matter Capacity 300 Sight Range 16 Terrain Scan Density 10 Armor Coverage 150 Evasion (%) 40 Recoil Reduction 6 Authchip Count 6 Item Schematics ----------------- None Robot Schematics ------------------ None Fabricated ------------ Nothing Alien Tech Used ----------------- None Achievements -------------- None Challenges ------------ None Game ------ Seed MetafiberRelayPrototype Manual? 0 Play Time 00:53:08 Cumulative 158.7 hours Start 2025.04.22 @ 15:30:45 End 2025.04.23 @ 00:09:37 Sessions 3 Manual Loads 0 Difficulty Rogue Special Mode None Game No. 238 Rogue 238 Adventurer 0 Explorer 0 Win Type - Total 1 Types 1/0/0/0/0/0/0/0/0 Lore% 56 Gallery% 59 Achievement% 53 Wizard Run 0 Options --------- Layout 1 ASCII 0 Keyboard 0 Movement Mouse Keybinds 0 Fullscreen 2 Font 32/Smallcaps Map View 50x40 Zoom Use 0% Tactical HUD 1 Map Filters NONE Filters NONE Steam 1 RUN: 539d0308-2765-4538-9989-82e7ebac5aae